fUSD/lending_fUSD_20250120
["ID","MTS","AMOUNT","RATE_DAILY","PERIOD"]
[349741934,1737406254103,-639.51,0.00020993,2]
[349741935,1737406254113,-543.4,0.00020993,2]
[349741936,1737406254122,-500.0,0.00020993,2]
[349741937,1737406254131,-500.0,0.00020993,2]
[349741938,1737406254141,-528.03,0.00020993,2]
[349741939,1737406254150,-500.0,0.00020993,2]
[349741940,1737406254160,-533.73,0.00020993,2]
[349741941,1737406254169,-897.01,0.00020993,2]
[349741942,1737406254180,-500.0,0.00020993,2]
[349741943,1737406254189,-500.0,0.00020993,2]
[349741944,1737406254199,-1702.86,0.00020993,2]
[349741945,1737406254208,-500.0,0.00020993,2]
[349741946,1737406254218,-500.0,0.00020993,2]
[349741947,1737406254227,-786.24,0.00020993,2]
[349741948,1737406254237,-563.44,0.00020993,2]
[349741949,1737406254247,-500.0,0.00020993,2]
[349741950,1737406254256,-678.14,0.00020993,2]
[349741951,1737406254266,-500.0,0.00020993,2]
[349741952,1737406254275,-783.31,0.00020993,2]
[349741953,1737406254285,-561.17,0.00020993,2]
[349741954,1737406254294,-596.73,0.00020993,2]
[349741955,1737406254303,-863.28,0.00020993,2]
[349741956,1737406254313,-500.0,0.00020993,2]
[349741957,1737406254322,-500.0,0.00020993,2]
[349741958,1737406254331,-714.47,0.00020993,2]
[349741959,1737406254341,-500.0,0.00020993,2]
[349741960,1737406254350,-1174.15,0.00020993,2]
[349741961,1737406254359,-533.73,0.00020993,2]
[349741962,1737406254368,-1320.75,0.00020993,2]
[349741963,1737406254378,-782.15,0.00020993,2]
[349741964,1737406254387,-500.0,0.00020993,2]
[349741965,1737406254396,-1940.6,0.00020993,2]
[349741966,1737406254405,-1968.11,0.00020993,2]
[349741967,1737406254415,-1110.84,0.00020993,2]
[349741968,1737406254424,-1168.63,0.00020993,2]
[349741969,1737406254434,-760.59,0.00020993,2]
[349741970,1737406254444,-3549.35,0.00020993,2]
[349741971,1737406254453,-515.84,0.00020993,2]
[349741972,1737406254463,-500.0,0.00020993,2]
[349741973,1737406254472,-500.0,0.00020993,2]
[349741974,1737406254482,-578.09,0.00020993,2]
[349741975,1737406254491,-1699.77,0.00020993,2]
[349741976,1737406254501,-594.6,0.00020993,2]
[349741977,1737406254510,-3874.15,0.00020993,2]
[349741978,1737406254520,-1762.64,0.00020993,2]
[349741979,1737406254530,-1482.32,0.00020993,2]
[349741980,1737406254539,-500.0,0.00020993,2]
[349741981,1737406254549,-500.0,0.00020993,2]
[349741982,1737406254558,-748.8,0.00020993,2]
[349741983,1737406254568,-753.64,0.00020993,2]
[349741984,1737406254577,-527.13,0.00020993,2]
[349741985,1737406254587,-2082.53,0.00020993,2]
[349741986,1737406254597,-987.62,0.00020993,2]
[349741987,1737406254606,-2873.19,0.00020993,2]
[349741988,1737406254616,-586.96,0.00020993,2]
[349741989,1737406254625,-500.0,0.00020993,2]
[349741990,1737406254634,-2147.85,0.00020993,2]
[349741991,1737406254644,-908.55,0.00020993,2]
[349741992,1737406254653,-500.0,0.00020993,2]
[349741993,1737406254663,-500.0,0.00020993,2]
[349741994,1737406254672,-1350.78,0.00020993,2]
[349741995,1737406254682,-500.0,0.00020993,2]
[349741996,1737406254691,-871.37,0.00020993,2]
[349741997,1737406254701,-578.5,0.00020993,2]
[349741998,1737406254711,-500.0,0.00020993,2]
[349741999,1737406254720,-1168.13,0.00020993,2]
[349742000,1737406254729,-617.85,0.00020993,2]
[349742001,1737406254738,-1194.28,0.00020993,2]
[349742002,1737406254748,-1223.03,0.00020993,2]
[349742003,1737406254757,-500.0,0.00020993,2]
[349742004,1737406254767,-784.19,0.00020993,2]
[349742005,1737406254777,-1922.43,0.00020993,2]
[349742006,1737406254786,-1589.83,0.00020993,2]
[349742007,1737406254797,-3002.0,0.00020993,2]
[349742008,1737406254807,-500.0,0.00020993,2]
[349742009,1737406254816,-546.45,0.00020993,2]
[349742010,1737406254826,-2137.91,0.00020993,2]
[349742011,1737406254835,-626.83,0.00020993,2]
[349742012,1737406254844,-1172.8,0.00020993,2]
[349742013,1737406254853,-2762.3,0.00020993,2]
[349742014,1737406254862,-652.17,0.00020993,2]
[349742015,1737406254871,-500.0,0.00020993,2]
[349742016,1737406254880,-500.0,0.00020993,2]
[349742017,1737406254889,-500.0,0.00020993,2]
[349742018,1737406254898,-500.0,0.00020993,2]
[349742019,1737406254908,-1235.76,0.00020993,2]
[349742020,1737406254917,-668.74,0.00020993,2]
[349742021,1737406254929,-1009.89,0.00020993,2]
[349742022,1737406254941,-1226.99,0.00020993,2]
[349742023,1737406254950,-500.0,0.00020993,2]
[349742024,1737406254960,-567.76,0.00020993,2]
[349742025,1737406254970,-1596.14,0.00020993,2]
[349742026,1737406254980,-1768.71,0.00020993,2]
[349742027,1737406254990,-1123.59,0.00020993,2]
[349742028,1737406254999,-1498.8,0.00020993,2]
[349742029,1737406255011,-500.0,0.00020993,2]
[349742030,1737406255021,-500.0,0.00020993,2]
[349742031,1737406255035,-824.86,0.00020993,2]
[349742032,1737406255044,-500.0,0.00020993,2]
[349742033,1737406255054,-2337.53,0.00020993,2]
[349742034,1737406255063,-586.61,0.00020993,2]
[349742035,1737406255072,-500.0,0.00020993,2]
[349742036,1737406255082,-1428.34,0.00020993,2]
[349742037,1737406255091,-711.87,0.00020993,2]
[349742038,1737406255100,-500.0,0.00020993,2]
[349742039,1737406255109,-500.0,0.00020993,2]
[349742040,1737406255118,-2421.89,0.00020993,2]
[349742041,1737406255128,-500.0,0.00020993,2]
[349742042,1737406255137,-835.31,0.00020993,2]
[349742043,1737406255147,-756.22,0.00020993,2]
[349742044,1737406255157,-1000.0,0.00020993,2]
[349742045,1737406255166,-500.0,0.00020993,2]
[349742046,1737406255175,-500.0,0.00020993,2]
[349742047,1737406255184,-500.0,0.00020993,2]
[349742048,1737406255193,-893.29,0.00020993,2]
[349742049,1737406255202,-1266.0,0.00020993,2]
[349742050,1737406255212,-1187.11,0.00020993,2]
[349742051,1737406255221,-500.0,0.00020993,2]
[349742052,1737406255231,-2623.76,0.00020993,2]
[349742053,1737406255241,-582.39,0.00020993,2]
[349742054,1737406255250,-785.61,0.00020993,2]
[349742055,1737406255259,-500.0,0.00020993,2]
[349742056,1737406255270,-593.62,0.00020993,2]
[349742057,1737406255279,-537.85316069,0.00020993,2]
[349742058,1737406255289,-526.47,0.00020993,2]
[349742059,1737406255299,-1432.28,0.00020993,2]
[349742060,1737406255309,-500.0,0.00020993,2]
[349742061,1737406255318,-354.58010726,0.00020993,2]
[349742062,1737406255327,-500.0,0.00020993,2]
[349742063,1737406255337,-2032.33,0.00020993,2]
[349742064,1737406255346,-551.67,0.00020993,2]
[349742065,1737406255355,-2753.5,0.00020993,2]
[349742066,1737406255365,-500.0,0.00020993,2]
[349742067,1737406255374,-949.44,0.00020993,2]
[349742068,1737406255384,-511.19,0.00020993,2]
[349742069,1737406255395,-500.0,0.00020993,2]
[349742070,1737406255404,-933.53,0.00020993,2]
[349742071,1737406255414,-500.0,0.00020993,2]
[349742072,1737406255423,-1606.37,0.00020993,2]
[349742073,1737406255433,-1980.2392221,0.00020996,2]
[349742074,1737406255443,-1799.99999908,0.00021,22]
[349742075,1737406255453,-3435822.45,0.00021,15]
[349742076,1737406255462,-32046.76944542,0.00021,3]
[349742077,1737406255472,-322052.61682946,0.00021,2]
[349742078,1737406255481,-13033.57796318,0.00021,2]
[349742079,1737406255490,-144675.37610583,0.00021,3]
[349742080,1737406255500,-362.94287197,0.00021,2]
[349742081,1737406255509,-1299.4638728,0.00021,2]
[349742082,1737406255520,-2880.05055062,0.00021,3]
[349742083,1737406255529,-24685.61985936,0.00021,2]
[349742084,1737406255768,-548.7819154,0.00021,2]
[349742085,1737406255780,-8768.97521127,0.00021,2]
[349742086,1737406255995,-443.69401089,0.00020683,2]
[349742087,1737406256005,-1155.95942672,0.00021,2]
[349742088,1737406256019,-520.7287838,0.00021,2]
[349742089,1737406256031,-263.94350001,0.00021,2]
[349742090,1737406256043,-93467.62146612,0.00021,2]
[349742091,1737406256053,-2000.0,0.00021,2]
[349742092,1737406256062,-1000.0,0.00021,2]
[349742093,1737406256071,-1000.0,0.00021,2]
[349742094,1737406256080,-1000.0,0.00021,2]
[349742095,1737406256090,-1000.0,0.00021,2]
[349742096,1737406256099,-1000.0,0.00021,2]
[349742097,1737406256109,-1000.0,0.00021,2]
[349742098,1737406256118,-1000.0,0.00021,2]
[349742099,1737406256127,-1000.0,0.00021,2]
[349742100,1737406256137,-1000.0,0.00021,2]
[349742101,1737406256147,-1000.0,0.00021,2]
[349742102,1737406256156,-1000.0,0.00021,2]
[349742103,1737406256166,-1000.0,0.00021,2]
[349742104,1737406256174,-1000.0,0.00021,2]
[349742105,1737406256184,-1000.0,0.00021,2]
[349742106,1737406256193,-1000.0,0.00021,2]
[349742107,1737406256202,-1000.0,0.00021,2]
[349742108,1737406256212,-1000.0,0.00021,2]
[349742109,1737406256221,-1000.0,0.00021,2]
[349742110,1737406256230,-1000.0,0.00021,2]
[349742111,1737406256239,-1000.0,0.00021,2]
[349742112,1737406256248,-1000.0,0.00021,2]
[349742113,1737406256258,-373.037167,0.00021,2]
[349742114,1737406256268,-41370.3413077,0.00021,7]
[349742115,1737406256278,-700.0,0.00021,2]
[349742116,1737406256287,-151.0,0.00021,2]
[349742117,1737406256297,-708.622676,0.00021,2]
[349742118,1737406256307,-708.622676,0.00021,2]
[349742119,1737406256316,-708.622676,0.00021,2]
[349742120,1737406256325,-708.622676,0.00021,2]
[349742121,1737406256334,-275.792104,0.00021,2]
[349742122,1737406256344,-151.0,0.00021,2]
[349742123,1737406256354,-199.654536,0.00021,2]
[349742124,1737406256363,-157.847608,0.00021,2]
[349742125,1737406256372,-193.93998,0.00021,2]
[349742126,1737406256381,-193.93998,0.00021,2]
[349742127,1737406256391,-193.93998,0.00021,2]
[349742128,1737406256400,-193.93998,0.00021,2]
[349742129,1737406256409,-193.93998,0.00021,2]
[349742130,1737406256418,-193.939975,0.00021,2]
[349742131,1737406256429,-751.485336,0.00021,2]
[349742132,1737406256438,-751.485336,0.00021,2]
[349742133,1737406256448,-751.485336,0.00021,2]
[349742134,1737406256457,-751.485336,0.00021,2]
[349742135,1737406256467,-751.485336,0.00021,2]
[349742136,1737406256478,-751.485345,0.00021,2]
[349742137,1737406256487,-456.413579,0.00021,2]
[349742138,1737406256497,-456.413579,0.00021,2]
[349742139,1737406256506,-456.413579,0.00021,2]
[349742140,1737406256517,-456.413579,0.00021,2]
[349742141,1737406256526,-456.413579,0.00021,2]
[349742142,1737406256536,-456.413573,0.00021,2]
[349742143,1737406256545,-977.815331,0.00021,2]
[349742144,1737406256555,-977.815331,0.00021,2]
[349742145,1737406256564,-977.815331,0.00021,2]
[349742146,1737406256574,-977.815331,0.00021,2]
[349742147,1737406256584,-977.815331,0.00021,2]
[349742148,1737406256593,-977.815339,0.00021,2]
[349742149,1737406256602,-150.0,0.00021,2]
[349742150,1737406256611,-151.0,0.00021,2]
[349742151,1737406256621,-151.0,0.00021,2]
[349742152,1737406256630,-151.0,0.00021,2]
[349742153,1737406256639,-2000.0,0.0002101,2]
[349742154,1737406256649,-3948.388498,0.0002102,2]
[349742155,1737406256659,-1980.2392221,0.00021066,2]
[349742156,1737406256669,-1980.2392221,0.00021066,2]
[349742157,1737406256678,-1980.2392221,0.00021066,2]
[349742158,1737406256688,-150.0,0.00021073,2]
[349742159,1737406256698,-150.0,0.00021078,4]
[349742160,1737406256707,-318268.22127262,0.0002108,2]
[349742161,1737406256873,-4583.5207987,0.00018988,2]
[349742162,1737406256883,-500.0,0.00019623,2]
[349742163,1737406256893,-500.0,0.00019623,2]
[349742164,1737406256902,-10750.28255236,0.0002108,2]
[349742165,1737406256914,-26226.57842853,0.0002108,2]
[349742166,1737406256926,-255.5359996,0.0002108,2]
[349742167,1737406257021,-8177.71782458,0.0002108,2]
[349742168,1737406257034,-602.8224,0.0002108,2]
[349742169,1737406257247,-426.4587781,0.00019466,2]
[349742170,1737406257259,-4157.0620206,0.00019466,2]
[349742171,1737406257271,-443.69401089,0.0002098,2]
[349742172,1737406257280,-173106.17796699,0.0002108,2]
[349742173,1737406257292,-48352.93125225,0.0002108,2]
[349742174,1737406257303,-2272.049504,0.0002108,2]
[349742175,1737406257315,-1028.13879675,0.0002108,2]
[349742176,1737406257327,-510.00939672,0.0002108,2]
[349742177,1737406257383,-51783.12903868,0.0002108,2]
[349742178,1737406257395,-42244.78357402,0.0002108,2]
[349742180,1737406369656,208.53,0.00010137,2]
[349742182,1737406958344,150.0,0.00011,2]
[349742184,1737407381955,183.07,0.00010137,2]
[349742188,1737407432420,-296.83461336,0.00015,2]
[349742189,1737407432432,-253.16538664,0.00015,2]
[349742190,1737407432442,-233.70564336,0.00016679,2]
[349742191,1737407432532,-1251.25435664,0.00016679,2]
[349742192,1737407432542,-208.53,0.00016813,2]
[349742193,1737407432552,-600.0,0.00017,2]
[349742194,1737407432562,-1309.91538309,0.00018,2]
[349742195,1737407432572,-438.26289557,0.00018164,2]
[349742196,1737407432582,-250.0,0.00018302,2]
[349742197,1737407432592,-250.0,0.0001831,2]
[349742198,1737407432602,-150.0,0.00018372,2]
[349742199,1737407432614,-207.92,0.00018574,2]
[349742200,1737407432623,-1000.0,0.00018597,2]
[349742201,1737407432633,-170.47,0.00018624,2]
[349742202,1737407432643,-1050.89,0.00018663,2]
[349742203,1737407432654,-300.0,0.00018699,2]
[349742204,1737407432664,-180.01,0.000187,2]
[349742205,1737407432674,-23900.0,0.000187,2]
[349742206,1737407432684,-1036.93,0.00018702,30]
[349742207,1737407432694,-536.53,0.00018833,2]
[349742208,1737407432704,-250.0,0.00018879,2]
[349742209,1737407432720,-1484.96,0.00018943,2]
[349742210,1737407432731,-650.0,0.00019,2]
[349742211,1737407432741,-1309.0,0.00019,2]
[349742212,1737407432751,-427.15934284,0.00019011,2]
[349742213,1737407432761,-427.15934284,0.00019259,2]
[349742214,1737407432771,-3172.18213109,0.00019523,2]
[349742215,1737407432782,-394.9593,0.00019523,2]
[349742216,1737407432791,-844.195,0.00019611,2]
[349742217,1737407432801,-705.6,0.00019611,2]
[349742218,1737407432811,-500.0,0.00019623,2]
[349742220,1737407432821,-500.0,0.00019623,2]
[349742222,1737407432832,-500.0,0.00019623,7]
[349742224,1737407432842,-500.0,0.00019623,2]
[349742226,1737407432852,-355.32080685,0.00019623,2]
[349742227,1737407432862,-500.0,0.00019623,2]
[349742229,1737407432873,-500.0,0.00019623,2]
[349742230,1737407432884,-500.0,0.00019623,2]
[349742231,1737407432895,-500.0,0.00019623,2]
[349742232,1737407432906,-500.0,0.00019623,2]
[349742233,1737407432916,-500.0,0.00019623,2]
[349742234,1737407432926,-500.0,0.00019623,2]
[349742235,1737407433130,-500.0,0.00019623,2]
[349742236,1737407433142,-500.0,0.00019623,2]
[349742237,1737407433154,-500.0,0.00019623,2]
[349742238,1737407433166,-500.0,0.00019623,2]
[349742239,1737407433177,-500.0,0.00019623,2]
[349742240,1737407433189,-500.0,0.00019623,2]
[349742241,1737407433200,-500.0,0.00019623,2]
[349742242,1737407433212,-500.0,0.00019623,2]
[349742243,1737407433230,-500.0,0.00019623,2]
[349742244,1737407433241,-500.0,0.00019623,2]
[349742245,1737407433253,-500.0,0.00019623,2]
[349742246,1737407433265,-500.0,0.00019623,2]
[349742247,1737407433276,-500.0,0.00019623,2]
[349742248,1737407433288,-500.0,0.00019623,2]
[349742249,1737407433302,-500.0,0.00019623,2]
[349742250,1737407433313,-500.0,0.00019623,2]
[349742251,1737407433323,-831.42,0.00019623,2]
[349742252,1737407433334,-500.0,0.00019623,2]
[349742253,1737407433344,-500.0,0.00019623,2]
[349742254,1737407433356,-500.0,0.00019623,2]
[349742255,1737407433367,-500.0,0.00019623,2]
[349742256,1737407433379,-500.0,0.00019623,2]
[349742257,1737407433389,-168.76148206,0.00019623,2]
[349742258,1737407433402,-500.0,0.00019623,2]
[349742259,1737407433414,-598.41,0.00019623,2]
[349742260,1737407433425,-534.84291163,0.00019623,2]
[349742261,1737407433436,-500.0,0.00019623,2]
[349742262,1737407433446,-500.0,0.00019623,2]
[349742263,1737407433457,-500.0,0.00019623,2]
[349742264,1737407433472,-621.52,0.00019623,2]
[349742265,1737407433483,-500.0,0.00019623,2]
[349742266,1737407433494,-500.0,0.00019623,2]
[349742267,1737407433504,-500.0,0.00019623,2]
[349742268,1737407433515,-500.0,0.00019623,2]
[349742269,1737407433526,-320.05294947,0.00019623,2]
[349742270,1737407433535,-500.0,0.00019623,2]
[349742271,1737407433546,-365.9457076,0.00019623,2]
[349742272,1737407433555,-500.0,0.00019623,2]
[349742273,1737407433567,-500.0,0.00019623,2]
[349742274,1737407433577,-500.0,0.00019623,2]
[349742275,1737407433586,-500.0,0.00019623,2]
[349742276,1737407433596,-500.0,0.00019623,2]
[349742277,1737407433606,-500.0,0.00019623,2]
[349742278,1737407433615,-500.0,0.00019623,2]
[349742279,1737407433625,-500.0,0.00019623,2]
[349742280,1737407433635,-500.0,0.00019623,2]
[349742281,1737407433644,-500.0,0.00019623,2]
[349742282,1737407433655,-500.0,0.00019623,2]
[349742283,1737407433665,-500.0,0.00019623,2]
[349742284,1737407433676,-500.0,0.00019623,2]
[349742285,1737407433686,-500.0,0.00019623,2]
[349742286,1737407433697,-500.0,0.00019623,2]
[349742287,1737407433708,-500.0,0.00019623,2]
[349742288,1737407433722,-500.0,0.00019623,2]
[349742289,1737407433731,-500.0,0.00019623,2]
[349742290,1737407433741,-500.0,0.00019623,2]
[349742291,1737407433751,-500.0,0.00019623,2]
[349742292,1737407433761,-372.18593719,0.00019623,2]
[349742293,1737407433771,-503.14,0.00019623,2]
[349742294,1737407433781,-500.0,0.00019623,2]
[349742295,1737407433791,-238.99433261,0.00019623,2]
[349742296,1737407433800,-500.0,0.00019623,2]
[349742297,1737407433810,-500.0,0.00019623,2]
[349742298,1737407433820,-598.32281621,0.00019623,2]
[349742299,1737407433830,-500.0,0.00019623,2]
[349742300,1737407433840,-500.0,0.00019623,2]
[349742301,1737407433850,-500.0,0.00019623,2]
[349742302,1737407433860,-500.0,0.00019623,2]
[349742303,1737407433870,-500.0,0.00019623,2]
[349742304,1737407433880,-635.99929706,0.00019623,2]
[349742305,1737407433889,-557.57,0.00019623,2]
[349742306,1737407433899,-500.0,0.00019623,2]
[349742307,1737407433909,-500.0,0.00019623,2]
[349742308,1737407433918,-500.0,0.00019623,2]
[349742309,1737407433928,-500.0,0.00019623,2]
[349742310,1737407433938,-500.0,0.00019623,2]
[349742311,1737407433948,-500.0,0.00019623,2]
[349742312,1737407433957,-500.0,0.00019623,2]
[349742313,1737407433968,-500.0,0.00019623,2]
[349742314,1737407433978,-500.0,0.00019623,2]
[349742315,1737407433987,-500.0,0.00019623,2]
[349742316,1737407433997,-500.0,0.00019623,2]
[349742317,1737407434006,-500.0,0.00019623,2]
[349742318,1737407434016,-500.0,0.00019623,2]
[349742319,1737407434025,-500.0,0.00019623,2]
[349742320,1737407434035,-500.0,0.00019623,2]
[349742321,1737407434045,-500.0,0.00019623,2]
[349742322,1737407434054,-500.0,0.00019623,2]
[349742323,1737407434064,-500.0,0.00019623,2]
[349742324,1737407434074,-712.08,0.00019623,2]
[349742325,1737407434084,-620.12,0.00019623,2]
[349742326,1737407434094,-500.0,0.00019623,2]
[349742327,1737407434103,-500.0,0.00019623,2]
[349742328,1737407434113,-647.46,0.00019623,2]
[349742329,1737407434122,-508.6,0.00019623,2]
[349742330,1737407434131,-535.85,0.00019623,2]
[349742331,1737407434140,-565.33,0.00019623,2]
[349742332,1737407434150,-500.0,0.00019623,2]
[349742333,1737407434160,-882.02,0.00019623,2]
[349742334,1737407434170,-500.0,0.00019623,2]
[349742335,1737407434180,-833.13,0.00019623,2]
[349742336,1737407434190,-344.13758988,0.00019623,2]
[349742337,1737407434200,-500.0,0.00019623,2]
[349742338,1737407434210,-589.68,0.00019623,2]
[349742339,1737407434222,-586.61,0.00019623,2]
[349742340,1737407434232,-500.0,0.00019623,2]
[349742341,1737407434242,-500.0,0.00019623,2]
[349742342,1737407434252,-570.44,0.00019623,2]
[349742343,1737407434262,-1455.45,0.00019623,2]
[349742344,1737407434272,-1274.82,0.00019623,2]
[349742345,1737407434283,-2662.01,0.00019623,2]
[349742346,1737407434296,-1111.74,0.00019623,2]
[349742347,1737407434305,-500.0,0.00019623,2]
[349742348,1737407434315,-500.0,0.00019623,2]
[349742349,1737407434327,-1561.89,0.00019623,2]
[349742350,1737407434336,-565.23,0.00019623,2]
[349742351,1737407434346,-500.0,0.00019623,2]
[349742352,1737407434355,-653.52,0.00019623,2]
[349742353,1737407434366,-700.15,0.00019623,2]
[349742354,1737407434375,-500.0,0.00019623,2]
[349742355,1737407434386,-500.0,0.00019623,2]
[349742356,1737407434396,-500.0,0.00019623,2]
[349742357,1737407434406,-639.2,0.00019623,2]
[349742358,1737407434415,-895.71,0.00019623,2]
[349742359,1737407434425,-500.0,0.00019623,2]
[349742360,1737407434434,-500.0,0.00019623,2]
[349742361,1737407434443,-1441.83,0.00019623,2]
[349742362,1737407434452,-2905.61,0.00019623,2]
[349742363,1737407434462,-2071.72,0.00019623,2]
[349742364,1737407434474,-500.0,0.00019623,2]
[349742365,1737407434483,-500.0,0.00019623,2]
[349742366,1737407434492,-500.0,0.00019623,2]
[349742367,1737407434502,-926.82,0.00019623,2]
[349742368,1737407434511,-500.0,0.00019623,2]
[349742369,1737407434521,-500.0,0.00019623,2]
[349742370,1737407434532,-500.0,0.00019623,2]
[349742371,1737407434542,-757.42,0.00019623,2]
[349742372,1737407434552,-500.0,0.00019623,2]
[349742373,1737407434562,-1326.53,0.00019623,2]
[349742374,1737407434571,-500.0,0.00019623,2]
[349742375,1737407434580,-1124.1,0.00019623,2]
[349742376,1737407434590,-500.0,0.00019623,2]
[349742377,1737407434599,-500.0,0.00019623,2]
[349742378,1737407434609,-1071.26,0.00019623,2]
[349742379,1737407434619,-401.73271843,0.00019623,2]
[349742380,1737407434628,-533.17,0.00019623,2]
[349742381,1737407434639,-500.0,0.00019623,2]
[349742382,1737407434649,-500.0,0.00019623,2]
[349742383,1737407434659,-500.0,0.00019623,2]
[349742384,1737407434669,-567.16,0.00019623,2]
[349742385,1737407434679,-2251.5,0.00019623,2]
[349742386,1737407434689,-1000.0,0.00019623,2]
[349742387,1737407434700,-500.0,0.00019623,2]
[349742388,1737407434710,-890.33,0.00019623,2]
[349742389,1737407434721,-500.0,0.00019623,2]
[349742390,1737407434731,-500.0,0.00019623,2]
[349742391,1737407434740,-500.0,0.00019623,2]
[349742392,1737407434750,-500.0,0.00019623,2]
[349742393,1737407434760,-500.0,0.00019623,2]
[349742394,1737407434770,-1074.21,0.00019623,2]
[349742395,1737407434782,-500.0,0.00019623,2]
[349742396,1737407434797,-511.77,0.00019623,2]
[349742397,1737407434807,-1524.25,0.00019623,2]
[349742398,1737407434817,-500.0,0.00019623,2]
[349742399,1737407434826,-712.7,0.00019623,2]
[349742400,1737407434836,-500.0,0.00019623,2]
[349742401,1737407434846,-1770.63,0.00019623,2]
[349742402,1737407434855,-626.48,0.00019623,2]
[349742403,1737407434865,-500.0,0.00019623,2]
[349742404,1737407434875,-982.48,0.00019623,2]
[349742405,1737407434884,-500.0,0.00019623,2]
[349742406,1737407434894,-500.0,0.00019623,2]
[349742407,1737407434904,-584.39199028,0.00019623,2]
[349742408,1737407434913,-201.7037611,0.00019623,2]
[349742409,1737407434922,-270.99609006,0.00019623,2]
[349742410,1737407434932,-427.15934284,0.00019645,2]
[349742411,1737407434941,-427.15934284,0.00019764,2]
[349742412,1737407434950,-3172.18213108,0.00019787,2]
[349742413,1737407434959,-2025.7796,0.00019797,2]
[349742414,1737407434970,-217.57424622,0.00019797,2]
[349742415,1737407434981,-177.87,0.00019887,2]
[349742416,1737407434990,-667.78,0.00019896,2]
[349742417,1737407435000,-1277.15,0.00019896,2]
[349742418,1737407435010,-488.200816,0.00019896,2]
[349742419,1737407435019,-500.0,0.00019896,2]
[349742420,1737407435028,-500.0,0.00019896,2]
[349742421,1737407435037,-500.0,0.00019896,2]
[349742422,1737407435046,-500.0,0.00019896,2]
[349742423,1737407435055,-990.56,0.00019896,2]
[349742424,1737407435065,-1476.08,0.00019896,2]
[349742425,1737407435074,-372.560492,0.00019896,2]
[349742426,1737407435083,-876.47,0.00019896,2]
[349742427,1737407435092,-198.74,0.00019896,2]
[349742428,1737407435101,-500.0,0.00019896,2]
[349742429,1737407435115,-740.71,0.00019896,2]
[349742430,1737407435128,-1321.98,0.00019896,2]
[349742431,1737407435137,-561.6,0.00019896,2]
[349742432,1737407435147,-2154.89,0.00019896,2]
[349742433,1737407435156,-681.41,0.00019896,2]
[349742434,1737407435166,-500.0,0.00019896,2]
[349742435,1737407435175,-1610.89,0.00019896,2]
[349742436,1737407435186,-500.0,0.00019896,2]
[349742437,1737407435196,-500.0,0.00019896,2]
[349742438,1737407435205,-876.09,0.00019896,2]
[349742439,1737407435217,-917.27,0.00019896,2]
[349742440,1737407435227,-1013.08,0.00019896,2]
[349742441,1737407435237,-500.0,0.00019896,2]
[349742442,1737407435248,-1192.37,0.00019896,2]
[349742443,1737407435257,-588.15,0.00019896,2]
[349742444,1737407435267,-879.6,0.00019896,2]